bitfinex/quotes_SOLUSD_20260305
["timestamp","ask_amount","ask_price","bid_price","bid_amount"]
[1772720860410,2.37324302,90.787,90.739,2.40820882]
[1772720860615,2.37324302,90.777,90.731,2.40820882]
[1772720860837,0.14216157,90.766,90.72,2.40820882]
[1772720861015,10.98236782,90.77,90.72,2.40820882]
[1772720861016,2.37324302,90.761,90.72,2.40820882]
[1772720861212,2.37324302,90.761,90.721,11.02276124]
[1772720861521,2.37324302,90.759,90.72,2.40820882]
[1772720861726,2.37324302,90.759,90.722,11.02260992]
[1772720861928,2.37324302,90.759,90.72,2.40820882]
[1772720862138,2.37324302,90.759,90.72,13.43105966]
[1772720862437,2.37324302,90.759,90.724,11.02243936]
[1772720862739,2.37324302,90.759,90.728,2.40820882]
[1772720863155,2.37324302,90.759,90.732,2.40820882]
[1772720863721,11.01831243,90.758,90.732,2.40820882]
[1772720864342,11.01831243,90.758,90.733,2.40820882]
[1772720865424,13.39034155,90.768,90.733,2.40820882]
[1772720867622,2.37324302,90.767,90.735,2.40820882]
[1772720868030,2.37324302,90.765,90.723,2.40820882]
[1772720868224,2.37324302,90.761,90.723,2.40820882]
[1772720868427,2.37324302,90.761,90.724,11.02237917]
[1772720870134,2.30637387,90.759,90.724,11.02237917]
[1772720870337,2.30637387,90.759,90.73,2.38013853]
[1772720871234,11.01806963,90.76,90.732,2.18013853]
[1772720871620,2.30637387,90.757,90.71,0.2]
[1772720871916,2.30637387,90.751,90.71,0.2]
[1772720872550,38.5674931,90.75,90.71,0.2]
[1772720872725,2.30637387,90.749,90.71,0.2]
[1772720873127,2.30637387,90.749,90.714,2.18013853]
[1772720874838,11.0195266,90.748,90.715,11.02353524]
[1772720875045,11.0195266,90.748,90.716,2.18013853]
[1772720875342,13.32590047,90.748,90.716,2.18013853]
[1772720876247,2.30637387,90.747,90.716,2.18013853]
[1772720877042,2.30637387,90.745,90.716,2.18013853]
[1772720877239,2.30637387,90.743,90.713,2.42410342]
[1772720878448,2.30637387,90.741,90.713,2.42410342]
[1772720880039,2.30637387,90.741,90.71,0.2]
[1772720880266,2.30637387,90.741,90.63,11.01215274]
[1772720880267,2.30637387,90.729,90.669,2.18013853]
[1772720880559,0.14216157,90.738,90.669,2.18013853]
[1772720880560,2.30637387,90.713,90.674,11.0284046]
[1772720880757,5.12835409,90.72,90.658,27.57586164]
[1772720880758,2.30637387,90.728,90.678,2.18013853]
[1772720881054,2.30637387,90.736,90.678,2.18013853]
[1772720882046,2.30637387,90.729,90.678,2.18013853]
[1772720882563,44.07376419,90.757,90.677,11.72516926]
[1772720882564,2.30637387,90.741,90.685,2.18013853]
[1772720885235,5.12835409,90.75,90.687,2.18013853]
[1772720885236,2.30637387,90.739,90.687,2.18013853]
[1772720885436,2.30637387,90.731,90.687,2.18013853]
[1772720886329,38.57174343,90.74,90.687,2.18013853]
[1772720886330,11.02049812,90.74,90.687,2.18013853]
[1772720888558,0.28432314,90.744,90.689,2.18013853]
[1772720888944,2.59069701,90.744,90.689,2.18013853]
[1772720890735,0.28432314,90.742,90.691,2.18013853]
[1772720892053,11.01916232,90.751,90.693,2.18013853]
[1772720892249,11.01916232,90.751,90.695,2.18013853]
[1772720892447,11.01916232,90.751,90.697,2.18013853]
[1772720892770,5.12835409,90.78,90.692,38.59215806]
[1772720892771,17.95455946,90.764,90.707,2.18013853]
[1772720892948,2.59069701,90.763,90.707,2.18013853]
[1772720893659,17.95455946,90.764,90.707,2.18013853]
[1772720894862,17.95455946,90.764,90.711,3.69383402]
[1772720895048,17.95455946,90.764,90.712,2.18013853]
[1772720895663,20.26093333,90.764,90.712,2.18013853]
[1772720896066,2.30637387,90.763,90.712,2.18013853]
[1772720896458,2.30637387,90.761,90.712,2.18013853]
[1772720897855,2.30637387,90.761,90.708,38.58535079]
[1772720897856,0.28432314,90.756,90.705,2.18013853]
[1772720898056,2.30637387,90.741,90.705,2.18013853]
[1772720900165,13.3073303,90.74,90.707,2.24039733]
[1772720900374,11.02049812,90.74,90.707,2.24039733]
[1772720900700,13.3073303,90.74,90.707,2.24039733]
[1772720900879,2.28683218,90.739,90.707,2.24039733]
[1772720901175,11.02049812,90.74,90.707,2.24039733]
[1772720902077,2.28683218,90.74,90.697,2.24039733]
[1772720902771,2.57115532,90.749,90.698,2.24039733]
[1772720903158,2.28683218,90.749,90.698,2.24039733]
[1772720904076,11.01831243,90.758,90.699,38.58917959]
[1772720904264,11.01831243,90.758,90.703,2.24039733]
[1772720905355,2.28683218,90.757,90.703,2.24039733]
[1772720907255,11.01855524,90.756,90.705,2.26416303]
[1772720910082,11.01855524,90.756,90.707,2.26416303]
[1772720910777,13.17396397,90.756,90.707,2.26416303]
[1772720910975,13.17420679,90.754,90.709,2.26416303]
[1772720911180,2.15540873,90.753,90.709,2.26416303]
[1772720912781,5.12835409,90.78,90.709,2.26416303]
[1772720912782,2.15540873,90.761,90.709,2.26416303]
[1772720912985,2.15540873,90.772,90.714,2.26416303]
[1772720913277,104.9,90.825,90.722,2.26416303]
[1772720913278,2.15540873,90.788,90.722,2.26416303]
[1772720913476,11.01406097,90.794,90.736,2.26416303]
[1772720913781,17.94289828,90.79,90.738,2.26416303]
[1772720915459,17.94289828,90.79,90.743,2.26416303]
[1772720915668,6.92844195,90.79,90.745,2.26416303]
[1772720915860,11.01321834,90.8,90.747,2.26416303]
[1772720916581,2.15540873,90.809,90.747,2.26416303]
[1772720917583,2.15540873,90.807,90.752,2.26416303]
[1772720918569,2.15540873,90.805,90.752,2.26416303]
[1772720918972,2.15540873,90.801,90.752,2.26416303]
[1772720919564,11.01321585,90.8,90.754,2.26416303]
[1772720919768,2.15540873,90.809,90.756,2.26416303]
[1772720919983,2.15540873,90.809,90.755,0.28432314]
[1772720919984,13.16760242,90.809,90.758,2.26416303]
[1772720920775,2.15540873,90.808,90.758,2.26416303]
[1772720921694,2.15540873,90.806,90.759,11.01819103]
[1772720921882,2.15540873,90.802,90.759,11.01819103]
[1772720922488,2.15540873,90.802,90.76,2.26416303]
[1772720924371,2.15540873,90.8,90.762,2.26416303]
[1772720926569,2.15540873,90.808,90.764,2.26416303]
[1772720927695,2.15540873,90.806,90.766,2.26416303]
[1772720929599,2.16262822,90.811,90.768,2.22235688]
[1772720929894,2.16262822,90.819,90.768,2.22235688]
[1772720930774,11.01079057,90.82,90.768,2.22235688]
[1772720931071,2.16262822,90.842,90.775,2.22235688]
[1772720931397,2.16262822,90.842,90.777,2.22235688]
[1772720931877,2.16262822,90.84,90.782,2.22235688]
[1772720932796,0.14216157,90.851,90.781,3.69383402]
[1772720932797,2.16262822,90.848,90.784,2.22235688]
[1772720933098,2.16262822,90.842,90.784,2.22235688]
[1772720933900,2.16262822,90.84,90.789,2.22235688]
[1772720935896,2.16262822,90.838,90.794,2.22235688]
[1772720936987,2.16262822,90.836,90.796,2.22235688]
[1772720938004,2.16262822,90.836,90.786,2.22235688]
[1772720938184,2.16262822,90.832,90.786,2.22235688]
[1772720939002,2.16262822,90.827,90.772,2.22235688]
[1772720939200,2.16262822,90.821,90.772,2.22235688]
[1772720940789,38.53437266,90.828,90.728,2.22235688]
[1772720940790,2.16262822,90.807,90.728,2.22235688]
[1772720940985,2.16262822,90.801,90.734,0.14216157]
[1772720941180,2.16262822,90.801,90.737,2.22235688]
[1772720941400,0.14216157,90.794,90.737,2.22235688]
[1772720941599,2.16262822,90.791,90.737,2.22235688]
[1772720943007,2.16262822,90.789,90.739,2.22235688]
[1772720943606,2.16262822,90.787,90.739,2.22235688]
[1772720943806,43.67520142,90.79,90.739,2.22235688]
[1772720943807,2.16262822,90.781,90.739,2.22235688]
[1772720944409,2.16262822,90.779,90.738,11.02074103]
[1772720945003,2.16262822,90.779,90.738,13.24309791]
[1772720946396,2.16262822,90.777,90.739,2.22235688]
[1772720946594,2.16262822,90.777,90.719,3.69383402]
[1772720946595,2.16262822,90.777,90.72,2.22235688]
[1772720951023,2.16262822,90.789,90.725,2.50668002]
[1772720951231,6.98206425,90.832,90.725,2.50668002]
[1772720951402,6.98206425,90.832,90.735,4.82477569]
[1772720951403,2.16262822,90.83,90.735,4.82477569]
[1772720951604,2.16262822,90.83,90.748,2.22235688]
[1772720951923,0.28432314,90.823,90.758,2.22235688]
[1772720952107,2.16262822,90.822,90.758,2.22235688]
[1772720953203,2.16262822,90.82,90.763,2.22235688]
[1772720954650,6.98206425,90.832,90.765,2.50668002]
[1772720954927,0.1,90.87,90.777,5.10909883]
[1772720955134,2.16262822,90.868,90.791,0.14216157]
[1772720955301,2.16262822,90.868,90.781,3.69383402]
[1772720955302,2.16262822,90.868,90.806,2.22235688]
[1772720955506,2.16262822,90.868,90.808,2.22235688]
[1772720955740,2.16262822,90.866,90.808,2.22235688]
[1772720955932,0.14216157,90.865,90.808,2.22235688]
[1772720956109,0.14216157,90.861,90.808,2.22235688]
[1772720956310,2.16262822,90.852,90.808,2.22235688]
[1772720956826,0.28432314,90.861,90.81,2.22235688]
[1772720956827,2.16262822,90.85,90.81,2.22235688]
[1772720959233,2.21134996,90.848,90.81,2.22235688]
[1772720959419,2.21134996,90.848,90.809,11.01212434]
[1772720961329,11.00751813,90.847,90.809,2.16933163]
[1772720961642,2.21134996,90.846,90.809,2.16933163]
[1772720963634,11.00776047,90.845,90.811,2.16933163]
[1772720964637,2.21134996,90.844,90.811,2.16933163]
[1772720966034,2.21134996,90.844,90.794,3.69383402]
[1772720966035,2.21134996,90.842,90.802,2.16933163]
[1772720968137,2.1527772,90.84,90.804,2.33003781]
[1772720968818,11.00773885,90.846,90.804,2.33003781]
[1772720969240,2.1527772,90.845,90.804,2.33003781]
[1772720971233,11.00788164,90.844,90.806,2.33003781]
[1772720971545,13.16065884,90.844,90.806,2.33003781]
[1772720972645,2.1527772,90.843,90.806,2.33003781]
[1772720973023,11.00788164,90.844,90.806,2.33003781]
[1772720973219,11.00715465,90.85,90.807,38.5432841]
[1772720973455,2.1527772,90.849,90.808,2.33003781]
[1772720974248,2.1527772,90.845,90.792,2.33003781]
[1772720974423,2.1527772,90.841,90.794,2.33003781]
[1772720975758,2.1527772,90.839,90.795,13.34386015]
[1772720976136,2.1527772,90.839,90.795,11.01382234]
[1772720976336,2.1527772,90.837,90.791,20.48211214]
[1772720976651,2.1527772,90.831,90.791,20.48211214]
[1772720976850,2.1527772,90.831,90.791,9.46787958]
[1772720977052,2.1527772,90.831,90.792,2.33003781]
[1772720977753,2.1527772,90.829,90.793,11.01406496]
[1772720978051,2.1527772,90.829,90.794,2.33003781]
[1772720979923,55.04183179,90.84,90.794,2.33003781]
[1772720979924,2.1527772,90.827,90.794,2.33003781]
[1772720980530,2.1527772,90.827,90.791,9.46787958]
[1772720980531,2.1527772,90.827,90.796,2.33003781]
[1772720982148,11.01006319,90.826,90.796,2.33003781]
[1772720982337,2.1527772,90.825,90.796,2.33003781]
[1772720983150,2.1527772,90.825,90.798,2.33003781]
[1772720984231,11.01030564,90.824,90.798,2.33003781]
[1772720985444,13.16308284,90.824,90.798,2.33003781]
[1772720985753,40.68884695,90.824,90.798,2.33003781]
[1772720986453,40.68884695,90.824,90.8,2.33003781]
[1772720986454,11.01030564,90.824,90.8,2.33003781]
[1772720986773,55.03316945,90.855,90.799,11.01333715]
[1772720986774,2.1527772,90.877,90.803,2.33003781]
[1772720987067,2.1527772,90.868,90.807,2.33003781]
[1772720987947,2.1527772,90.86,90.807,2.33003781]
[1772720988150,2.1527772,90.852,90.807,2.33003781]
[1772720989848,11.00703349,90.851,90.809,2.15747578]
[1772720990249,2.14112,90.85,90.811,2.15747578]
[1772720991469,27.51538176,90.859,90.811,2.15747578]
[1772720991470,11.0072758,90.849,90.813,2.15747578]
[1772720991679,11.0072758,90.849,90.814,2.15747578]
[1772720993650,11.0072758,90.849,90.816,2.15747578]
[1772720993850,2.14112,90.848,90.816,2.15747578]
[1772720995564,2.14112,90.842,90.812,3.58473887]
[1772720997574,2.14112,90.84,90.813,2.15747578]
[1772720998572,2.14112,90.84,90.812,3.58473887]
[1772720999552,2.14112,90.838,90.812,3.58473887]
[1772721000178,2.14112,90.838,90.813,2.15747578]
[1772721000481,2.14112,90.869,90.814,2.15747578]
[1772721000692,2.14112,90.867,90.814,2.15747578]
[1772721000983,2.14112,90.853,90.812,3.58473887]
[1772721001151,82.53730685,90.868,90.798,2.15747578]
[1772721001152,2.42544314,90.839,90.798,2.15747578]
[1772721001351,2.14112,90.819,90.733,2.15747578]
[1772721001651,2.28328157,90.798,90.737,2.15747578]
[1772721001970,0.28432314,90.812,90.739,3.69383402]
[1772721002174,2.14112,90.797,90.74,2.15747578]
[1772721002350,0.28432314,90.794,90.74,2.15747578]
[1772721002556,3.69383402,90.807,90.74,2.15747578]
[1772721002557,2.19891612,90.789,90.74,2.15747578]
[1772721002864,3.69383402,90.807,90.74,2.15747578]
[1772721002865,2.19891612,90.793,90.74,2.15747578]
[1772721003059,0.28432314,90.802,90.74,2.15747578]
[1772721003271,2.44192097,90.812,90.74,2.15747578]
[1772721003468,11.01151804,90.814,90.74,2.15747578]
[1772721003469,2.44192097,90.809,90.74,2.15747578]
[1772721003662,11.01151804,90.814,90.74,2.23478594]
[1772721003663,2.15759783,90.779,90.74,2.23478594]
[1772721003861,2.15759783,90.789,90.74,2.23478594]
[1772721004084,2.15759783,90.798,90.74,2.23478594]
[1772721004279,2.2997594,90.804,90.74,2.23478594]
[1772721004484,5.12014463,90.79,90.74,2.23478594]
[1772721004773,2.15759783,90.801,90.724,2.23478594]
[1772721005080,55.04766353,90.831,90.723,82.66922388]
[1772721005081,0.28432314,90.803,90.73,2.23478594]
[1772721005371,2.15759783,90.795,90.734,2.23478594]
[1772721005675,2.15759783,90.795,90.74,2.23478594]
[1772721005877,2.44192097,90.806,90.74,2.23478594]
[1772721006171,2.15759783,90.802,90.742,2.23478594]
[1772721006375,11.01212434,90.809,90.748,2.23478594]
[1772721006550,2.15759783,90.808,90.748,2.23478594]
[1772721006963,2.15759783,90.806,90.748,2.23478594]
[1772721007171,2.15759783,90.793,90.748,2.23478594]
[1772721007570,2.15759783,90.793,90.75,2.23478594]
[1772721007874,2.15759783,90.806,90.75,2.23478594]
[1772721008051,0.14216157,90.801,90.75,2.23478594]
[1772721008258,2.15759783,90.789,90.75,2.23478594]
[1772721008464,2.44192097,90.779,90.725,2.23478594]
[1772721008779,2.15759783,90.769,90.725,2.23478594]
[1772721009269,2.15759783,90.769,90.724,11.02244169]
[1772721009270,2.15759783,90.799,90.727,2.23478594]
[1772721009480,2.15759783,90.81,90.73,2.23478594]
[1772721009779,2.15759783,90.81,90.724,82.66831267]
[1772721009780,2.15759783,90.853,90.74,2.23478594]
[1772721009978,2.15759783,90.853,90.75,0.28432314]
[1772721010280,2.15759783,90.849,90.778,2.23478594]
[1772721010658,2.15759783,90.849,90.78,2.23478594]
[1772721010868,2.15759783,90.839,90.78,2.23478594]
[1772721011176,2.15759783,90.833,90.78,2.23478594]
[1772721011771,11.00750243,90.848,90.783,0.28432314]
[1772721012074,1e-08,90.854,90.791,2.51910908]
[1772721012284,1e-08,90.854,90.784,3.69383402]
[1772721012285,11.10481035,90.87,90.8,2.23478594]
[1772721012453,11.10481035,90.87,90.795,3.97815716]
[1772721012454,0.1,90.87,90.817,0.14216157]
[1772721012781,0.1,90.87,90.818,2.23478594]
[1772721013079,2.15759783,90.857,90.785,0.28432314]
[1772721013377,2.15759783,90.843,90.781,38.55432303]
[1772721013756,2.15759783,90.843,90.762,88.14201029]
[1772721013757,2.15759783,90.837,90.774,12.49350695]
[1772721013953,2.15759783,90.854,90.777,3.69383402]
[1772721014163,2.15759783,90.854,90.778,1.76139468]
[1772721014377,2.15759783,90.854,90.779,1.47705527]
[1772721014573,2.15759783,90.852,90.779,1.47705527]
[1772721014775,11.00679119,90.853,90.779,1.47705527]
[1772721014776,2.15759783,90.839,90.779,1.47705527]
[1772721014971,2.15759783,90.839,90.78,2.23478594]
[1772721015274,2.15759783,90.85,90.782,2.23478594]
[1772721015479,2.2997594,90.86,90.784,2.23478594]
[1772721015787,0.1,90.87,90.8,2.23478594]
[1772721016078,0.1,90.87,90.812,2.23478594]
[1772721016375,0.1,90.87,90.828,2.23478594]
[1772721016977,0.1,90.87,90.83,2.23478594]
[1772721017177,11.00170526,90.895,90.838,2.23478594]
[1772721017479,2.15759783,90.886,90.84,2.23478594]
[1772721017655,0.28432314,90.883,90.84,2.23478594]
[1772721017854,0.28432314,90.88,90.839,1.45988394]
[1772721018061,2.15759783,90.867,90.804,2.23478594]
[1772721018280,2.15759783,90.867,90.803,38.54498198]
[1772721018281,2.15759783,90.849,90.78,2.23478594]
[1772721018578,2.15759783,90.849,90.786,2.23478594]
[1772721019059,2.15759783,90.849,90.788,2.1594569]
[1772721019261,2.31386948,90.829,90.776,2.1594569]
[1772721019460,2.31386948,90.843,90.776,2.1594569]
[1772721019678,2.31386948,90.839,90.776,2.1594569]
[1772721019895,2.31386948,90.827,90.777,38.55602189]
[1772721020183,2.31386948,90.809,90.766,2.1594569]
[1772721020662,38.53437266,90.828,90.712,44.09545986]
[1772721020663,2.31386948,90.799,90.751,1.03449491]
[1772721020856,2.31386948,90.789,90.751,12.05355406]
[1772721021065,2.31386948,90.816,90.752,2.1594569]
[1772721021272,2.31386948,90.816,90.754,2.1594569]
[1772721021559,2.31386948,90.833,90.757,2.1594569]
[1772721022078,2.31386948,90.833,90.754,3.69383402]
[1772721022079,2.31386948,90.827,90.759,2.1594569]
[1772721022384,2.31386948,90.813,90.759,2.1594569]
[1772721022598,2.31386948,90.825,90.759,2.1594569]
[1772721022888,2.31386948,90.849,90.768,2.1594569]
[1772721023071,2.31386948,90.843,90.768,2.1594569]
[1772721023391,2.31386948,90.833,90.768,2.1594569]
[1772721023878,2.31386948,90.833,90.761,3.69383402]
[1772721023879,2.31386948,90.827,90.77,2.1594569]
[1772721024083,2.31386948,90.809,90.741,2.1594569]
[1772721024290,2.31386948,90.809,90.729,1.03474576]
[1772721024291,2.31386948,90.799,90.74,2.1594569]
[1772721024584,2.31386948,90.809,90.74,2.1594569]
[1772721024786,0.28432314,90.804,90.74,2.1594569]
[1772721025191,0.28432314,90.804,90.739,82.65464682]
[1772721025192,0.28432314,90.816,90.745,2.1594569]
[1772721025395,0.28432314,90.815,90.747,2.1594569]
[1772721025691,2.31386948,90.816,90.757,2.1594569]
[1772721025993,2.31386948,90.838,90.759,2.1594569]
[1772721026173,2.31386948,90.838,90.764,2.1594569]
[1772721026368,2.31386948,90.838,90.778,2.34010794]
[1772721026788,11.00744295,90.848,90.786,2.34010794]
[1772721026992,2.17186459,90.849,90.788,2.34010794]
[1772721027170,2.17186459,90.87,90.798,2.34010794]
[1772721027373,2.17186459,90.87,90.808,2.34010794]
[1772721027693,2.17186459,90.869,90.808,2.34010794]
[1772721027895,38.51274771,90.879,90.809,11.01212434]
[1772721027896,2.17186459,90.859,90.809,11.01212434]
[1772721028071,2.17186459,90.859,90.809,13.35223228]
[1772721028274,2.17186459,90.859,90.81,2.34010794]
[1772721028783,2.17186459,90.859,90.804,11.01261806]
[1772721028987,2.17186459,90.853,90.805,2.34010794]
[1772721029884,2.17186459,90.843,90.804,11.01261806]
[1772721030286,2.17186459,90.841,90.795,2.34010794]
[1772721031975,2.17186459,90.839,90.792,11.01418627]
[1772721032275,0.14216157,90.852,90.783,3.39038963]
[1772721032276,2.17186459,90.823,90.787,11.01467558]
[1772721032474,2.17186459,90.823,90.783,1.05028169]
[1772721032680,2.17186459,90.823,90.785,2.34010794]
[1772721033372,0.28432314,90.836,90.785,2.34010794]
[1772721033986,0.28432314,90.834,90.785,2.34010794]
[1772721034278,2.17186459,90.859,90.787,2.34010794]
[1772721034982,2.17186459,90.857,90.787,2.34010794]
[1772721035184,2.17186459,90.857,90.79,2.34010794]
[1772721035383,38.51317149,90.878,90.792,2.34010794]
[1772721035384,2.17186459,90.877,90.792,2.34010794]
[1772721035600,2.17186459,90.877,90.799,0.14216157]
[1772721035832,2.17186459,90.877,90.808,2.34010794]
[1772721036103,0.1,90.91,90.811,0.14216157]
[1772721036104,2.17186459,90.902,90.811,0.14216157]
[1772721036313,2.17186459,90.891,90.817,2.48226951]
[1772721036484,2.17186459,90.889,90.827,2.34010794]
[1772721036672,2.17186459,90.894,90.827,2.34010794]
[1772721036871,2.17186459,90.908,90.827,2.34010794]
[1772721037072,0.28432314,90.894,90.827,2.34010794]
[1772721037374,2.17186459,90.883,90.827,2.34010794]
[1772721038503,2.17186459,90.883,90.829,2.34010794]
[1772721038798,0.1,90.91,90.834,2.34010794]
[1772721039009,0.1,90.91,90.833,0.28432314]
[1772721039010,11.000011,90.909,90.84,2.34010794]
[1772721039181,11.000011,90.909,90.848,2.34010794]
[1772721039379,0.1,90.91,90.852,2.34010794]
[1772721039601,7.17498804,90.933,90.865,0.14216157]
[1772721039602,18.17219503,90.933,90.865,0.14216157]
[1772721039793,45.66496443,90.933,90.868,2.34010794]
[1772721039991,0.14216157,90.929,90.868,2.34010794]
[1772721040195,0.28432314,90.929,90.868,2.34010794]
[1772721040798,45.66496443,90.933,90.869,11.00485314]
[1772721040799,0.28432314,90.919,90.869,11.00485314]
[1772721041207,0.28432314,90.919,90.869,13.34496108]
[1772721041713,2.1058154,90.944,90.907,2.34010794]
[1772721042003,2.1058154,90.956,90.907,2.34010794]
[1772721042379,1e-08,90.97,90.89,0.86946374]
[1772721042604,1e-08,90.97,90.919,2.34010794]
[1772721043335,1e-08,90.97,90.915,1.11258383]
[1772721043336,2.38676686,90.959,90.915,1.11258383]
[1772721043614,2.38676686,90.959,90.915,3.45269177]
[1772721044103,2.38676686,90.959,90.884,1.42858143]
[1772721044104,2.17186459,90.949,90.884,1.42858143]
[1772721044290,2.17186459,90.949,90.885,1.32326146]
[1772721044799,10.99529401,90.948,90.889,3.69383402]
[1772721044994,10.99529401,90.948,90.89,1.60751181]
[1772721045189,2.17186459,90.96,90.891,1.46533568]
[1772721045393,10.99323915,90.965,90.892,1.32315955]
[1772721046198,1e-08,90.97,90.901,2.34010794]
[1772721046402,10.99275577,90.969,90.917,2.34010794]
[1772721046588,10.99275577,90.969,90.919,2.34010794]
[1772721046791,1e-08,90.97,90.926,2.34010794]
[1772721047096,1e-08,90.97,90.936,2.34010794]
[1772721047284,0.2,91.0,90.942,2.34010794]
[1772721047285,1e-08,90.98,90.942,2.34010794]
[1772721047485,0.2,91.0,90.952,2.34010794]
[1772721047690,0.67682339,91.04,90.956,2.34010794]
[1772721047884,2.17186459,91.018,90.956,2.34010794]
[1772721048389,2.17186459,90.999,90.945,2.34010794]
[1772721048598,10.98671705,91.019,90.957,2.34010794]
[1772721048821,10.98671705,91.019,90.967,2.34010794]
[1772721048822,40.8014188,91.019,90.967,2.34010794]
[1772721049110,2.34790911,91.018,90.967,2.34010794]
[1772721049928,2.34790911,91.016,90.956,2.32357752]
[1772721050210,2.63223225,91.003,90.956,2.32357752]
[1772721050385,2.63223225,91.003,90.951,0.83335514]
[1772721050386,2.34790911,90.999,90.951,0.83335514]
[1772721050721,2.34790911,90.989,90.951,0.83335514]
[1772721051087,2.34790911,90.977,90.928,13.3212213]
[1772721051285,0.28432314,90.978,90.886,1.10027947]
[1772721051286,2.34790911,90.971,90.921,10.99849976]
[1772721051485,0.14216157,90.962,90.922,0.81347749]
[1772721051707,0.14216157,90.962,90.917,2.32357752]
[1772721051708,2.34790911,90.955,90.866,2.32357752]
[1772721051908,2.34790911,90.949,90.874,0.14216157]
[1772721052213,2.34790911,90.949,90.887,2.32357752]
[1772721052890,2.34790911,90.947,90.889,2.32357752]
[1772721053400,2.34790911,90.947,90.891,2.32357752]
[1772721053612,2.34790911,90.947,90.893,2.32357752]
[1772721053782,2.34790911,90.947,90.893,0.58267373]
[1772721053987,2.34790911,90.947,90.828,44.03909775]
[1772721053988,2.34790911,90.919,90.857,2.32357752]
[1772721054692,2.34790911,90.909,90.857,2.32357752]
[1772721054995,2.34790911,90.889,90.837,2.32357752]
[1772721055190,2.34790911,90.879,90.826,2.32357752]
[1772721055501,2.34790911,90.869,90.826,2.32357752]
[1772721055694,10.9590209,90.9,90.799,30.0]
[1772721055695,2.34790911,90.857,90.801,2.32357752]
[1772721056012,2.34790911,90.853,90.801,2.32357752]
[1772721056211,2.34790911,90.869,90.804,2.32357752]
[1772721056390,2.34790911,90.869,90.803,3.69383402]
[1772721056391,2.34790911,90.907,90.806,2.32357752]
[1772721056585,2.34790911,90.875,90.806,2.32357752]
[1772721056804,2.34790911,90.867,90.811,2.32357752]
[1772721057201,2.34790911,90.865,90.811,2.32357752]
[1772721057404,2.34790911,90.861,90.811,2.32357752]
[1772721057914,0.28432314,90.872,90.811,2.32357752]
[1772721058210,2.34790911,90.869,90.811,2.32357752]
[1772721058410,11.00437077,90.873,90.807,11.01236688]
[1772721058411,2.34790911,90.859,90.807,11.01236688]
[1772721058708,2.34790911,90.847,90.788,2.32357752]
[1772721058913,2.34790911,90.843,90.79,2.32357752]
[1772721059095,2.34790911,90.841,90.79,2.32357752]
[1772721060011,13.35498224,90.851,90.79,2.32357752]
[1772721060214,13.35498224,90.851,90.789,38.55092577]
[1772721060215,2.34790911,90.862,90.793,2.32357752]
[1772721060415,2.34790911,90.893,90.806,2.32357752]
[1772721060616,2.34790911,90.893,90.814,2.32357752]
[1772721060912,2.22147337,90.891,90.828,2.32357752]
[1772721061121,2.22147337,90.919,90.83,2.32683084]
[1772721061316,2.22147337,90.909,90.838,2.32683084]
[1772721061490,10.9590209,90.9,90.84,2.32683084]
[1772721061807,2.22147337,90.869,90.824,11.01030564]
[1772721062113,0.14216157,90.917,90.824,11.01030564]
[1772721062114,2.22147337,90.909,90.83,2.32683084]
[1772721062310,54.9344518,90.96,90.835,2.32683084]
[1772721062311,10.99868015,90.92,90.835,2.32683084]
[1772721062528,43.9754309,90.96,90.846,2.32683084]
[1772721062529,2.22147337,90.948,90.846,2.32683084]
[1772721062817,2.22147337,90.948,90.836,0.28432314]
[1772721062818,2.22147337,90.945,90.865,2.46899241]
[1772721063024,2.22147337,90.943,90.877,2.32683084]
[1772721063320,2.22147337,90.943,90.887,2.32683084]
[1772721063697,2.22147337,90.969,90.901,2.32683084]
[1772721063908,2.22147337,90.969,90.897,0.14216157]
[1772721064095,2.22147337,90.959,90.861,38.52037726]
[1772721064414,214.28806907,90.999,90.861,11.00582207]
[1772721064415,2.22147337,90.909,90.861,11.00582207]
[1772721064600,2.22147337,90.907,90.861,38.52037726]
[1772721064804,0.14216157,90.906,90.816,110.11275545]
[1772721065116,2.22147337,90.899,90.817,0.14216157]
[1772721065309,2.22147337,90.889,90.816,38.5394644]
[1772721065495,2.22147337,90.887,90.817,0.14216157]
[1772721065694,38.50088882,90.907,90.816,38.5394644]
[1772721065695,2.22147337,90.879,90.816,38.5394644]
[1772721066002,2.22147337,90.879,90.82,2.32683084]
[1772721066528,2.22147337,90.877,90.816,38.5394644]
[1772721066695,2.22147337,90.869,90.816,38.5394644]
[1772721066897,2.22147337,90.867,90.817,2.32683084]
[1772721067095,2.22147337,90.867,90.809,11.01212434]
[1772721067096,2.22147337,90.859,90.809,11.01212434]
[1772721067315,2.22147337,90.859,90.81,2.32683084]
[1772721067528,4.82477569,90.91,90.809,38.54243521]
[1772721067529,0.28432314,90.882,90.813,2.61115398]
[1772721067702,2.22147337,90.876,90.813,2.32683084]
[1772721067899,2.22147337,90.868,90.813,2.32683084]
[1772721068295,11.00122113,90.899,90.815,2.32683084]
[1772721068497,10.9590209,90.88,90.815,2.32683084]
[1772721068818,0.28432314,90.857,90.804,11.01273071]
[1772721069003,0.28432314,90.857,90.804,38.5445575]
[1772721069193,11.00557596,90.864,90.805,2.32683084]
[1772721069393,0.28432314,90.876,90.808,2.32683084]